[Event "*** Titled Tuesday 3|2 Blitz"]
[Site "Chess.com"]
[Date "2016.03.01"]
[Round "3"]
[White "pKiLz5Rn9b"]
[Black "oskariot"]
[Result "1-0"]
[WhiteElo "2498"]
[BlackElo "2311"]
[TimeControl "180+2"]
[EndTime "17:35:38 PST"]
[Termination "pKiLz5Rn9b won by checkmate"]

1. e4 {[%clk 0:03:01.9]} 1... c5 {[%clk 0:01:16.8]} 2. c3 {[%clk 0:02:59.5]}
2... Nf6 {[%clk 0:01:10.2]} 3. e5 {[%clk 0:03:00.7]} 3... Nd5 {[%clk 0:01:11.1]}
4. d4 {[%clk 0:03:02.4]} 4... cxd4 {[%clk 0:01:13]} 5. cxd4 {[%clk 0:03:04.3]}
5... d6 {[%clk 0:01:14]} 6. Nf3 {[%clk 0:03:05.9]} 6... e6 {[%clk 0:01:15]} 7.
Bc4 {[%clk 0:03:06.8]} 7... Nc6 {[%clk 0:01:15.8]} 8. O-O {[%clk 0:03:08.1]}
8... Be7 {[%clk 0:01:17]} 9. Qe2 {[%clk 0:03:09.8]} 9... O-O {[%clk 0:01:17.9]}
10. Nbd2 {[%clk 0:03:11]} 10... Bd7 {[%clk 0:01:17.7]} 11. Ne4 {[%clk
0:03:11.9]} 11... dxe5 {[%clk 0:01:12]} 12. dxe5 {[%clk 0:03:10.7]} 12... Rc8
{[%clk 0:00:52.7]} 13. Rd1 {[%clk 0:03:09.6]} 13... Qc7 {[%clk 0:00:41.2]} 14.
Bd3 {[%clk 0:03:08.8]} 14... Nxe5 {[%clk 0:00:28.5]} 15. Nxe5 {[%clk 0:02:45.1]}
15... Qxe5 {[%clk 0:00:29.3]} 16. Bd2 {[%clk 0:02:42.9]} 16... Bc6 {[%clk
0:00:22.3]} 17. Rac1 {[%clk 0:02:25.7]} 17... Rfd8 {[%clk 0:00:22]} 18. Bb1
{[%clk 0:02:26.3]} 18... Nf6 {[%clk 0:00:15.2]} 19. Bc3 {[%clk 0:02:17.9]} 19...
Rxd1+ {[%clk 0:00:12.7]} 20. Rxd1 {[%clk 0:02:19.8]} 20... Qb5 {[%clk
0:00:11.8]} 21. Nxf6+ {[%clk 0:02:14.9]} 21... Bxf6 {[%clk 0:00:12.7]} 22. Qc2
{[%clk 0:02:16.6]} 22... Qh5 {[%clk 0:00:09.4]} 23. Bxf6 {[%clk 0:02:12]} 23...
gxf6 {[%clk 0:00:10.8]} 24. h3 {[%clk 0:02:08]} 24... f5 {[%clk 0:00:11.9]} 25.
Rd6 {[%clk 0:02:03.2]} 25... Qg5 {[%clk 0:00:12.6]} 26. g3 {[%clk 0:01:41.1]}
26... Qh5 {[%clk 0:00:13.8]} 27. Qd2 {[%clk 0:01:16.8]} 27... Bd5 {[%clk
0:00:09.6]} 28. Bd3 {[%clk 0:01:00.6]} 28... h6 {[%clk 0:00:10.1]} 29. Qf4
{[%clk 0:00:49.4]} 29... Qxh3 {[%clk 0:00:07.2]} 30. Rxd5 {[%clk 0:00:50.9]}
30... exd5 {[%clk 0:00:03.4]} 31. Bxf5 {[%clk 0:00:52.3]} 31... Rc1+ {[%clk
0:00:04.5]} 32. Qxc1 {[%clk 0:00:51.3]} 32... Qxf5 {[%clk 0:00:06.4]} 33. Qxh6
{[%clk 0:00:53.2]} 33... Qb1+ {[%clk 0:00:07.1]} 34. Kg2 {[%clk 0:00:53.6]}
34... Qxb2 {[%clk 0:00:09]} 35. Qg5+ {[%clk 0:00:54.4]} 35... Qg7 {[%clk
0:00:09.8]} 36. Qxd5 {[%clk 0:00:54.9]} 36... Qb2 {[%clk 0:00:11]} 37. g4 {[%clk
0:00:55.3]} 37... Qb6 {[%clk 0:00:11.4]} 38. Kg3 {[%clk 0:00:54]} 38... Kg7
{[%clk 0:00:12.8]} 39. Qe5+ {[%clk 0:00:53]} 39... Kg6 {[%clk 0:00:13.5]} 40.
Qe4+ {[%clk 0:00:53.7]} 40... Kg7 {[%clk 0:00:14.5]} 41. g5 {[%clk 0:00:54.6]}
41... Qa5 {[%clk 0:00:14]} 42. Qd4+ {[%clk 0:00:52.7]} 42... Kg8 {[%clk
0:00:14.3]} 43. f4 {[%clk 0:00:50.6]} 43... Qxa2 {[%clk 0:00:15.4]} 44. Qd8+
{[%clk 0:00:50.6]} 44... Kg7 {[%clk 0:00:16.7]} 45. Qf6+ {[%clk 0:00:51.6]}
45... Kg8 {[%clk 0:00:17.6]} 46. Qd8+ {[%clk 0:00:47.6]} 46... Kg7 {[%clk
0:00:18.5]} 47. Qd4+ {[%clk 0:00:48]} 47... Kg8 {[%clk 0:00:18.6]} 48. Qe4
{[%clk 0:00:47.7]} 48... Qb3+ {[%clk 0:00:18.2]} 49. Kh4 {[%clk 0:00:47.6]}
49... a5 {[%clk 0:00:16.5]} 50. Qe8+ {[%clk 0:00:44.7]} 50... Kg7 {[%clk
0:00:17.1]} 51. Qe5+ {[%clk 0:00:45.7]} 51... Kh7 {[%clk 0:00:18]} 52. Qxa5
{[%clk 0:00:44.5]} 52... b5 {[%clk 0:00:17.4]} 53. Qb6 {[%clk 0:00:41.4]} 53...
Qc4 {[%clk 0:00:17.2]} 54. Qh6+ {[%clk 0:00:41.6]} 54... Kg8 {[%clk 0:00:18.1]}
55. Qf6 {[%clk 0:00:37.9]} 55... b4 {[%clk 0:00:16.3]} 56. Qe5 {[%clk
0:00:31.9]} 56... b3 {[%clk 0:00:16.3]} 57. Kh5 {[%clk 0:00:32]} 57... Qe6
{[%clk 0:00:15.1]} 58. Qb8+ {[%clk 0:00:33]} 58... Kh7 {[%clk 0:00:14.3]} 59.
Kh4 {[%clk 0:00:32]} 59... Qc4 {[%clk 0:00:11.1]} 60. Qe5 {[%clk 0:00:30.2]}
60... Qc2 {[%clk 0:00:07.3]} 61. Qf6 {[%clk 0:00:31.6]} 61... Qg6 {[%clk
0:00:07.5]} 62. Qd4 {[%clk 0:00:27]} 62... Qc2 {[%clk 0:00:03.5]} 63. Qd5 {[%clk
0:00:23.8]} 63... Kg8 {[%clk 0:00:04.8]} 64. Qd8+ {[%clk 0:00:24.1]} 64... Kg7
{[%clk 0:00:06]} 65. Qf6+ {[%clk 0:00:24.6]} 65... Kh7 {[%clk 0:00:07.5]} 66.
Qxf7+ {[%clk 0:00:25.5]} 66... Kh8 {[%clk 0:00:08.1]} 67. g6 {[%clk 0:00:25.8]}
67... Qh2+ {[%clk 0:00:05.1]} 68. Kg4 {[%clk 0:00:27.4]} 68... Qg2+ {[%clk
0:00:06.1]} 69. Kf5 {[%clk 0:00:29]} 69... Qc2+ {[%clk 0:00:06.4]} 70. Kg5
{[%clk 0:00:30.1]} 70... Qg2+ {[%clk 0:00:07.6]} 71. Kf6 {[%clk 0:00:31.6]}
71... Qb2+ {[%clk 0:00:08.5]} 72. Ke6 {[%clk 0:00:32.1]} 72... Qe2+ {[%clk
0:00:08.9]} 73. Kd7 {[%clk 0:00:33.3]} 73... Qd3+ {[%clk 0:00:09.5]} 74. Kc6
{[%clk 0:00:32.8]} 74... Qc3+ {[%clk 0:00:10.5]} 75. Kb5 {[%clk 0:00:33.7]}
75... Qd3+ {[%clk 0:00:07.9]} 76. Ka4 {[%clk 0:00:32.5]} 76... Qc3 {[%clk
0:00:04.2]} 77. Qf8# {[%clk 0:00:31.6]} 1-0

[Event "*** Titled Tuesday 3|2 Blitz"]
[Site "Chess.com"]
[Date "2016.03.01"]
[Round "3"]
[White "maciek_92"]
[Black "GM_Huschenbeth"]
[Result "1/2-1/2"]
[WhiteElo "2449"]
[BlackElo "2383"]
[TimeControl "180+2"]
[EndTime "17:35:55 PST"]
[Termination "Game drawn - insufficient material"]

1. c4 {[%clk 0:03:01.6]} 1... c5 {[%clk 0:03:00.6]} 2. Nf3 {[%clk 0:03:02]} 2...
Nc6 {[%clk 0:03:01.4]} 3. g3 {[%clk 0:03:03]} 3... g6 {[%clk 0:03:02.4]} 4. Bg2
{[%clk 0:03:04.4]} 4... Bg7 {[%clk 0:03:04.3]} 5. Nc3 {[%clk 0:03:05.9]} 5... e6
{[%clk 0:03:05.7]} 6. O-O {[%clk 0:03:06.9]} 6... Nge7 {[%clk 0:03:07.3]} 7. d3
{[%clk 0:03:03.9]} 7... O-O {[%clk 0:03:08.7]} 8. Bd2 {[%clk 0:03:04.1]} 8... d5
{[%clk 0:03:09.1]} 9. cxd5 {[%clk 0:03:04.4]} 9... exd5 {[%clk 0:03:11]} 10. Rc1
{[%clk 0:03:05.5]} 10... b6 {[%clk 0:03:10.8]} 11. e4 {[%clk 0:02:54]} 11...
dxe4 {[%clk 0:03:03.7]} 12. dxe4 {[%clk 0:02:52.6]} 12... Ba6 {[%clk 0:03:01]}
13. Re1 {[%clk 0:02:52.1]} 13... Nb4 {[%clk 0:03:02.5]} 14. Qa4 {[%clk
0:02:43.8]} 14... Qc8 {[%clk 0:02:49.1]} 15. Red1 {[%clk 0:02:18]} 15... Nd3
{[%clk 0:02:48.3]} 16. Rb1 {[%clk 0:02:18.8]} 16... Re8 {[%clk 0:02:26]} 17. Bf1
{[%clk 0:02:04.7]} 17... c4 {[%clk 0:02:14]} 18. b3 {[%clk 0:01:47.9]} 18...
cxb3 {[%clk 0:01:58.8]} 19. Qxb3 {[%clk 0:01:40.6]} 19... Nc5 {[%clk 0:01:53.9]}
20. Qa3 {[%clk 0:01:32.4]} 20... Bxf1 {[%clk 0:01:54.7]} 21. Rxf1 {[%clk
0:01:33.8]} 21... Qg4 {[%clk 0:01:55.5]} 22. Kg2 {[%clk 0:01:00.6]} 22... Nxe4
{[%clk 0:01:46]} 23. Rb4 {[%clk 0:00:59]} 23... Nc6 {[%clk 0:01:37.7]} 24. Rxe4
{[%clk 0:00:54]} 24... Rxe4 {[%clk 0:01:39.6]} 25. h3 {[%clk 0:00:53.3]} 25...
Qf5 {[%clk 0:01:36.1]} 26. Nxe4 {[%clk 0:00:40.1]} 26... Qxe4 {[%clk 0:01:38]}
27. Re1 {[%clk 0:00:38.8]} 27... Qd5 {[%clk 0:01:39.2]} 28. Qb3 {[%clk
0:00:40.1]} 28... Qxb3 {[%clk 0:01:30.7]} 29. axb3 {[%clk 0:00:42]} 29... a5
{[%clk 0:01:24.9]} 30. Rc1 {[%clk 0:00:41.2]} 30... Rc8 {[%clk 0:01:18.6]} 31.
h4 {[%clk 0:00:31]} 31... Ne7 {[%clk 0:01:12.8]} 32. Re1 {[%clk 0:00:28.2]}
32... Nd5 {[%clk 0:01:13.3]} 33. h5 {[%clk 0:00:21.6]} 33... gxh5 {[%clk
0:00:50.3]} 34. Re4 {[%clk 0:00:22.4]} 34... Bf6 {[%clk 0:00:47.3]} 35. Bh6
{[%clk 0:00:16.2]} 35... Bg7 {[%clk 0:00:43.8]} 36. Bd2 {[%clk 0:00:16.2]} 36...
Nf6 {[%clk 0:00:40.3]} 37. Re7 {[%clk 0:00:14.7]} 37... Ng4 {[%clk 0:00:39.5]}
38. Rb7 {[%clk 0:00:14.9]} 38... Bf8 {[%clk 0:00:27.2]} 39. Rxb6 {[%clk
0:00:15.5]} 39... Bc5 {[%clk 0:00:28.5]} 40. Rb5 {[%clk 0:00:15.5]} 40... Bxf2
{[%clk 0:00:27.8]} 41. Rxh5 {[%clk 0:00:16.8]} 41... Be3 {[%clk 0:00:27.7]} 42.
Bxa5 {[%clk 0:00:15.5]} 42... Rc2+ {[%clk 0:00:26.1]} 43. Kh3 {[%clk 0:00:16.7]}
43... Nf2+ {[%clk 0:00:26]} 44. Kh4 {[%clk 0:00:17]} 44... h6 {[%clk 0:00:21.1]}
45. Re5 {[%clk 0:00:16.5]} 45... Bc1 {[%clk 0:00:17]} 46. Re8+ {[%clk
0:00:13.8]} 46... Kg7 {[%clk 0:00:17.9]} 47. Bb6 {[%clk 0:00:14.1]} 47... Bb2
{[%clk 0:00:16.8]} 48. g4 {[%clk 0:00:11.6]} 48... Nd3 {[%clk 0:00:16.8]} 49.
Nd4 {[%clk 0:00:12.1]} 49... Nf4 {[%clk 0:00:14.5]} 50. Nf5+ {[%clk 0:00:12.9]}
50... Kh7 {[%clk 0:00:15.9]} 51. Kg3 {[%clk 0:00:09.2]} 51... Ng6 {[%clk
0:00:12.3]} 52. Bd4 {[%clk 0:00:09.9]} 52... Bxd4 {[%clk 0:00:13]} 53. Nxd4
{[%clk 0:00:11.8]} 53... Rc3+ {[%clk 0:00:14.9]} 54. Kf2 {[%clk 0:00:12.2]}
54... Nf4 {[%clk 0:00:15.6]} 55. Re4 {[%clk 0:00:13.1]} 55... Nd5 {[%clk
0:00:15.7]} 56. Re5 {[%clk 0:00:12.8]} 56... Nf6 {[%clk 0:00:15]} 57. Ke2 {[%clk
0:00:08.2]} 57... Nxg4 {[%clk 0:00:16.2]} 58. Re4 {[%clk 0:00:08.8]} 58... h5
{[%clk 0:00:17.3]} 59. Kd2 {[%clk 0:00:09.8]} 59... Rc7 {[%clk 0:00:16]} 60. b4
{[%clk 0:00:11.3]} 60... Kg6 {[%clk 0:00:17.4]} 61. b5 {[%clk 0:00:12.5]} 61...
Rb7 {[%clk 0:00:17.2]} 62. Kc3 {[%clk 0:00:10.9]} 62... Nf6 {[%clk 0:00:17.8]}
63. Re1 {[%clk 0:00:11.4]} 63... h4 {[%clk 0:00:19.3]} 64. Kc4 {[%clk
0:00:12.6]} 64... Nd7 {[%clk 0:00:18.3]} 65. Kd5 {[%clk 0:00:13.1]} 65... Rb8
{[%clk 0:00:14.4]} 66. Kc6 {[%clk 0:00:12.5]} 66... Nf6 {[%clk 0:00:15.7]} 67.
b6 {[%clk 0:00:13.1]} 67... Kg5 {[%clk 0:00:14.4]} 68. Kc7 {[%clk 0:00:14.2]}
68... Rh8 {[%clk 0:00:12.3]} 69. b7 {[%clk 0:00:15.1]} 69... Ne8+ {[%clk
0:00:13.4]} 70. Kc6 {[%clk 0:00:15.3]} 70... Nf6 {[%clk 0:00:13.9]} 71. Kc7
{[%clk 0:00:15.6]} 71... Ne8+ {[%clk 0:00:15.1]} 72. Kb6 {[%clk 0:00:15.8]}
72... Nd6 {[%clk 0:00:16]} 73. Rg1+ {[%clk 0:00:11.6]} 73... Kf4 {[%clk
0:00:16.2]} 74. Rf1+ {[%clk 0:00:10]} 74... Ke4 {[%clk 0:00:16.5]} 75. Nc6
{[%clk 0:00:09.1]} 75... Nxb7 {[%clk 0:00:15.4]} 76. Kxb7 {[%clk 0:00:11]} 76...
h3 {[%clk 0:00:15.2]} 77. Rxf7 {[%clk 0:00:11.5]} 77... h2 {[%clk 0:00:16.3]}
78. Rf1 {[%clk 0:00:13.4]} 78... Rh7+ {[%clk 0:00:14]} 79. Kb6 {[%clk
0:00:13.7]} 79... h1=Q {[%clk 0:00:13.3]} 80. Rxh1 {[%clk 0:00:15]} 80... Rxh1
{[%clk 0:00:15.2]} 81. Kc5 {[%clk 0:00:16.4]} 81... Rc1+ {[%clk 0:00:15.2]} 82.
Kd6 {[%clk 0:00:17.6]} 82... Rxc6+ {[%clk 0:00:15.6]} 83. Kxc6 {[%clk
0:00:18.4]} 1/2-1/2

[Event "*** Titled Tuesday 3|2 Blitz"]
[Site "Chess.com"]
[Date "2016.03.01"]
[Round "4"]
[White "yopino"]
[Black "Rating-Schmating"]
[Result "1-0"]
[WhiteElo "2193"]
[BlackElo "2270"]
[TimeControl "180+2"]
[EndTime "17:39:34 PST"]
[Termination "yopino won by resignation"]

1. e4 {[%clk 0:03:01.9]} 1... e6 {[%clk 0:03:00]} 2. d4 {[%clk 0:03:02.1]} 2...
d5 {[%clk 0:03:00.3]} 3. Nd2 {[%clk 0:03:03.5]} 3... a6 {[%clk 0:03:00.4]} 4.
Ngf3 {[%clk 0:03:01.8]} 4... Nf6 {[%clk 0:03:01.2]} 5. e5 {[%clk 0:03:01.8]}
5... Nfd7 {[%clk 0:03:01.1]} 6. Bd3 {[%clk 0:03:02.6]} 6... c5 {[%clk
0:03:02.2]} 7. c3 {[%clk 0:03:03.8]} 7... Nc6 {[%clk 0:03:03.2]} 8. O-O {[%clk
0:03:03.7]} 8... Be7 {[%clk 0:03:03.9]} 9. Re1 {[%clk 0:03:03.9]} 9... g5 {[%clk
0:03:04.7]} 10. dxc5 {[%clk 0:03:03]} 10... Bxc5 {[%clk 0:03:02.4]} 11. Nb3
{[%clk 0:03:01.9]} 11... Be7 {[%clk 0:02:58.4]} 12. Nbd4 {[%clk 0:03:02.8]}
12... g4 {[%clk 0:02:54.5]} 13. Nxc6 {[%clk 0:03:02.9]} 13... bxc6 {[%clk
0:02:56]} 14. Nd4 {[%clk 0:03:04.3]} 14... Bb7 {[%clk 0:02:39.8]} 15. Qxg4
{[%clk 0:03:04.4]} 15... c5 {[%clk 0:02:40]} 16. Nf3 {[%clk 0:03:01.6]} 16...
Qc7 {[%clk 0:02:37.6]} 17. Qg7 {[%clk 0:03:00.4]} 17... O-O-O {[%clk 0:02:36.1]}
18. Qxf7 {[%clk 0:02:59.1]} 18... Nb6 {[%clk 0:02:29.8]} 19. Qxe6+ {[%clk
0:02:59.5]} 19... Kb8 {[%clk 0:02:29.7]} 20. Bf4 {[%clk 0:02:45.9]} 20... Rhg8
{[%clk 0:02:27.5]} 21. Bg3 {[%clk 0:02:44.7]} 21... Rdf8 {[%clk 0:02:25.9]} 22.
Bxh7 {[%clk 0:02:33.8]} 22... Rg7 {[%clk 0:02:23.6]} 23. Qh6 {[%clk 0:02:33.7]}
23... Nc8 {[%clk 0:02:07.6]} 24. Qxg7 {[%clk 0:02:33.6]} 24... a5 {[%clk
0:02:07.1]} 25. e6 {[%clk 0:02:29.6]} 25... Rd8 {[%clk 0:02:09]} 26. Bxc7+
{[%clk 0:02:29.1]} 1-0

[Event "*** Titled Tuesday 3|2 Blitz"]
[Site "Chess.com"]
[Date "2016.03.01"]
[Round "4"]
[White "Izoria123"]
[Black "Hikaru"]
[Result "1/2-1/2"]
[WhiteElo "2582"]
[BlackElo "2863"]
[TimeControl "180+2"]
[EndTime "17:40:17 PST"]
[Termination "Game drawn by agreement"]

1. d4 {[%clk 0:03:01.9]} 1... Nf6 {[%clk 0:02:59.6]} 2. c4 {[%clk 0:03:02.5]}
2... e6 {[%clk 0:03:00.2]} 3. Nf3 {[%clk 0:03:02.8]} 3... d5 {[%clk 0:03:01]} 4.
Nc3 {[%clk 0:03:03.4]} 4... Be7 {[%clk 0:03:02.3]} 5. Bg5 {[%clk 0:03:03.9]}
5... h6 {[%clk 0:03:02.2]} 6. Bh4 {[%clk 0:03:05]} 6... O-O {[%clk 0:03:02.5]}
7. e3 {[%clk 0:03:05.6]} 7... Ne4 {[%clk 0:03:01.4]} 8. Bxe7 {[%clk 0:03:05.4]}
8... Qxe7 {[%clk 0:03:03.3]} 9. Rc1 {[%clk 0:03:05.9]} 9... c6 {[%clk 0:03:04]}
10. Bd3 {[%clk 0:03:06.3]} 10... Nxc3 {[%clk 0:03:04.9]} 11. Rxc3 {[%clk
0:03:08]} 11... dxc4 {[%clk 0:03:06.5]} 12. Bxc4 {[%clk 0:03:08.6]} 12... Nd7
{[%clk 0:03:07.8]} 13. O-O {[%clk 0:03:09.2]} 13... b6 {[%clk 0:02:58.5]} 14.
Bd3 {[%clk 0:03:09.5]} 14... c5 {[%clk 0:02:57.5]} 15. Be4 {[%clk 0:03:09]}
15... Rb8 {[%clk 0:02:58.9]} 16. Qa4 {[%clk 0:03:09]} 16... Bb7 {[%clk
0:02:41.6]} 17. Bxb7 {[%clk 0:02:54.6]} 17... Rxb7 {[%clk 0:02:43.5]} 18. Rfc1
{[%clk 0:02:53.3]} 18... a5 {[%clk 0:02:35.5]} 19. h3 {[%clk 0:02:51.2]} 19...
e5 {[%clk 0:02:31.9]} 20. Qc6 {[%clk 0:02:32.3]} 20... Rbb8 {[%clk 0:02:20.4]}
21. Qe4 {[%clk 0:02:22.6]} 21... Rfe8 {[%clk 0:02:17.2]} 22. dxe5 {[%clk
0:02:20.5]} 22... Nxe5 {[%clk 0:02:18.5]} 23. Nxe5 {[%clk 0:02:21]} 23... Qxe5
{[%clk 0:02:20.4]} 24. Qxe5 {[%clk 0:02:22.2]} 24... Rxe5 {[%clk 0:02:22.3]} 25.
Rd1 {[%clk 0:02:23.3]} 25... Kf8 {[%clk 0:02:11.8]} 26. a4 {[%clk 0:02:20.4]}
26... Re4 {[%clk 0:02:11.7]} 27. b3 {[%clk 0:02:20.4]} 27... Ke8 {[%clk
0:02:06.7]} 28. Rc4 {[%clk 0:02:12.5]} 28... Re6 {[%clk 0:02:02.7]} 29. Kf1
{[%clk 0:02:12.7]} 1/2-1/2

[Event "*** Titled Tuesday 3|2 Blitz"]
[Site "Chess.com"]
[Date "2016.03.01"]
[Round "4"]
[White "Quiet_Desperation"]
[Black "chessking2151"]
[Result "0-1"]
[WhiteElo "2229"]
[BlackElo "2317"]
[TimeControl "180+2"]
[EndTime "17:41:15 PST"]
[Termination "chessking2151 won by resignation"]

1. e4 {[%clk 0:03:01.9]} 1... c5 {[%clk 0:02:59.9]} 2. Nf3 {[%clk 0:03:03]} 2...
Nc6 {[%clk 0:03:00.5]} 3. d4 {[%clk 0:03:04.3]} 3... cxd4 {[%clk 0:03:01.4]} 4.
Nxd4 {[%clk 0:03:06.2]} 4... g6 {[%clk 0:03:02.5]} 5. Nc3 {[%clk 0:03:05.7]}
5... Bg7 {[%clk 0:03:02.9]} 6. Be3 {[%clk 0:03:07.4]} 6... Nf6 {[%clk
0:03:03.3]} 7. Bc4 {[%clk 0:03:07.2]} 7... O-O {[%clk 0:03:03.4]} 8. Bb3 {[%clk
0:03:08.5]} 8... d6 {[%clk 0:03:04]} 9. f3 {[%clk 0:03:10]} 9... Bd7 {[%clk
0:03:04.7]} 10. Qd2 {[%clk 0:03:11.5]} 10... Rc8 {[%clk 0:03:05.3]} 11. O-O-O
{[%clk 0:03:12.6]} 11... Ne5 {[%clk 0:03:03.6]} 12. h4 {[%clk 0:03:13.8]} 12...
h5 {[%clk 0:03:03.9]} 13. Bg5 {[%clk 0:03:15.1]} 13... Rc5 {[%clk 0:03:04.4]}
14. Kb1 {[%clk 0:03:16.4]} 14... b5 {[%clk 0:03:02.2]} 15. g4 {[%clk 0:03:17.5]}
15... b4 {[%clk 0:02:54.7]} 16. Nd5 {[%clk 0:03:15.1]} 16... a5 {[%clk
0:02:46.2]} 17. gxh5 {[%clk 0:02:56]} 17... a4 {[%clk 0:02:43.5]} 18. Rdg1
{[%clk 0:02:57.1]} 18... axb3 {[%clk 0:02:42.7]} 19. hxg6 {[%clk 0:02:45.7]}
19... bxc2+ {[%clk 0:02:41]} 20. Nxc2 {[%clk 0:02:46.2]} 20... fxg6 {[%clk
0:02:37.7]} 21. h5 {[%clk 0:02:45.3]} 21... Nxd5 {[%clk 0:02:31.2]} 22. exd5
{[%clk 0:02:45.2]} 22... Nxf3 {[%clk 0:02:32.4]} 23. Qe3 {[%clk 0:02:36.5]}
23... Nxg1 {[%clk 0:02:14.9]} 24. hxg6 {[%clk 0:02:33.8]} 24... Rf1+ {[%clk
0:02:13.8]} 25. Ne1 {[%clk 0:02:33.3]} 25... Bf5+ {[%clk 0:02:14.6]} 26. Ka1
{[%clk 0:02:33.9]} 26... Rc3 {[%clk 0:01:39.8]} 27. Qd2 {[%clk 0:02:13.3]} 27...
Rd3 {[%clk 0:01:34.8]} 28. Qc1 {[%clk 0:02:07.7]} 28... Ne2 {[%clk 0:01:03.7]}
0-1

[Event "*** Titled Tuesday 3|2 Blitz"]
[Site "Chess.com"]
[Date "2016.03.01"]
[Round "4"]
[White "ArnaudovP"]
[Black "Tesla17"]
[Result "1-0"]
[WhiteElo "2307"]
[BlackElo "2285"]
[TimeControl "180+2"]
[EndTime "17:41:15 PST"]
[Termination "ArnaudovP won by resignation"]

1. Nf3 {[%clk 0:03:01.9]} 1... c5 {[%clk 0:03:00.9]} 2. c4 {[%clk 0:02:59.5]}
2... g6 {[%clk 0:03:01.4]} 3. d4 {[%clk 0:02:59.4]} 3... cxd4 {[%clk 0:03:02.2]}
4. Nxd4 {[%clk 0:03:00.9]} 4... Bg7 {[%clk 0:03:03.1]} 5. e4 {[%clk 0:03:02.4]}
5... Nc6 {[%clk 0:03:04]} 6. Be3 {[%clk 0:03:03.5]} 6... Nf6 {[%clk 0:03:04.6]}
7. Nc3 {[%clk 0:03:04.3]} 7... Qb6 {[%clk 0:03:05.4]} 8. Nb3 {[%clk 0:02:53.4]}
8... Qc7 {[%clk 0:03:06.4]} 9. Rc1 {[%clk 0:02:48.9]} 9... O-O {[%clk
0:03:07.5]} 10. Nd5 {[%clk 0:02:49.6]} 10... Qd8 {[%clk 0:03:07.7]} 11. f3
{[%clk 0:02:49.2]} 11... d6 {[%clk 0:03:07.8]} 12. Be2 {[%clk 0:02:49.2]} 12...
Bd7 {[%clk 0:03:04.5]} 13. O-O {[%clk 0:02:48.5]} 13... Re8 {[%clk 0:02:45.8]}
14. Qd2 {[%clk 0:02:48.4]} 14... Rc8 {[%clk 0:02:36.7]} 15. Rfd1 {[%clk
0:02:47.9]} 15... Nxd5 {[%clk 0:02:26.8]} 16. exd5 {[%clk 0:02:47.3]} 16... Ne5
{[%clk 0:02:26]} 17. h3 {[%clk 0:02:44.9]} 17... f5 {[%clk 0:02:23.7]} 18. Bd4
{[%clk 0:02:44]} 18... b6 {[%clk 0:02:19]} 19. f4 {[%clk 0:02:43.7]} 19... Nf7
{[%clk 0:02:17.4]} 20. Bxg7 {[%clk 0:02:44.6]} 20... Kxg7 {[%clk 0:02:19.3]} 21.
Nd4 {[%clk 0:02:45.7]} 21... Qc7 {[%clk 0:02:16.8]} 22. Bf3 {[%clk 0:02:42.9]}
22... Nh6 {[%clk 0:02:15.5]} 23. Re1 {[%clk 0:02:40.7]} 23... Ng8 {[%clk
0:02:13.3]} 24. g4 {[%clk 0:02:37.2]} 24... Nf6 {[%clk 0:02:01.1]} 25. g5 {[%clk
0:02:36.9]} 25... Ng8 {[%clk 0:01:57.2]} 26. Qc3 {[%clk 0:02:36.8]} 26... Kf7
{[%clk 0:01:48.4]} 27. Re6 {[%clk 0:02:26.3]} 27... Qc5 {[%clk 0:01:34.6]} 28.
Kg2 {[%clk 0:02:26.3]} 28... b5 {[%clk 0:01:35.4]} 29. b3 {[%clk 0:02:24.3]}
29... bxc4 {[%clk 0:01:31.4]} 30. bxc4 {[%clk 0:02:25.2]} 30... Bxe6 {[%clk
0:01:27.1]} 31. Nxe6 {[%clk 0:02:23.7]} 1-0

[Event "*** Titled Tuesday 3|2 Blitz"]
[Site "Chess.com"]
[Date "2016.03.01"]
[Round "4"]
[White "ethylalcohol"]
[Black "josiwales"]
[Result "0-1"]
[WhiteElo "1726"]
[BlackElo "2095"]
[TimeControl "180+2"]
[EndTime "17:41:55 PST"]
[Termination "josiwales won on time"]

1. e4 {[%clk 0:03:01.9]} 1... c5 {[%clk 0:03:00.7]} 2. Nc3 {[%clk 0:03:01.9]}
2... e6 {[%clk 0:02:58.6]} 3. g3 {[%clk 0:02:59.9]} 3... Nc6 {[%clk 0:02:57.7]}
4. Bg2 {[%clk 0:03:00.8]} 4... g6 {[%clk 0:02:59.1]} 5. Nge2 {[%clk 0:03:01.1]}
5... Bg7 {[%clk 0:03:00.3]} 6. d3 {[%clk 0:02:58.5]} 6... Nge7 {[%clk
0:03:01.3]} 7. O-O {[%clk 0:02:56.7]} 7... O-O {[%clk 0:03:00.9]} 8. Be3 {[%clk
0:02:54.6]} 8... Nd4 {[%clk 0:03:00.4]} 9. Qd2 {[%clk 0:02:51.3]} 9... d6 {[%clk
0:02:56.9]} 10. Nd1 {[%clk 0:02:39.1]} 10... f5 {[%clk 0:02:54.8]} 11. Nf4
{[%clk 0:02:18.1]} 11... e5 {[%clk 0:02:54.4]} 12. Ne2 {[%clk 0:02:11.2]} 12...
Nxe2+ {[%clk 0:02:54.5]} 13. Qxe2 {[%clk 0:02:11.1]} 13... f4 {[%clk 0:02:48]}
14. Bd2 {[%clk 0:01:58.3]} 14... Nc6 {[%clk 0:02:49]} 15. c3 {[%clk 0:01:51.1]}
15... h5 {[%clk 0:02:49]} 16. f3 {[%clk 0:01:31.5]} 16... Be6 {[%clk 0:02:42.3]}
17. Nf2 {[%clk 0:01:27.4]} 17... Qd7 {[%clk 0:02:42.5]} 18. Rfd1 {[%clk
0:00:47.7]} 18... g5 {[%clk 0:02:40.1]} 19. g4 {[%clk 0:00:29.3]} 19... hxg4
{[%clk 0:02:40]} 20. Nxg4 {[%clk 0:00:28.9]} 20... Bxg4 {[%clk 0:02:40.7]} 21.
fxg4 {[%clk 0:00:30.3]} 21... Rf6 {[%clk 0:02:40.2]} 22. Rf1 {[%clk 0:00:19.8]}
22... Kf7 {[%clk 0:02:40.9]} 23. Bf3 {[%clk 0:00:17.9]} 23... Rh8 {[%clk
0:02:41.7]} 24. Kg2 {[%clk 0:00:14.3]} 24... Rfh6 {[%clk 0:02:42.3]} 25. Rh1
{[%clk 0:00:14.3]} 25... b5 {[%clk 0:02:41]} 26. d4 {[%clk 0:00:05]} 26... cxd4
{[%clk 0:02:40.4]} 27. Qxb5 {[%clk 0:00:05.6]} 27... Rh3 {[%clk 0:02:36.3]} 28.
Raf1 {[%clk 0:00:02.1]} 28... Rxf3 {[%clk 0:02:32.6]} 0-1